[Event "Late-Titled-Tuesday-Blitz-April-30-2024"]
[Site "Chess.com"]
[Date "2024.04.30"]
[Round "2"]
[White "Nemsko"]
[Black "mr_gustavo"]
[Result "0-1"]
[WhiteElo "2440"]
[BlackElo "2713"]
[TimeControl "180+1"]
[EndTime "14:19:06 PDT"]
[Termination "mr_gustavo won by resignation"]

1. e4 {[%clk 0:03:00.9]} 1... c6 {[%clk 0:02:56.2]} 2. d4 {[%clk 0:03:00.1]}
2... d5 {[%clk 0:02:55.9]} 3. e5 {[%clk 0:03:00.1]} 3... c5 {[%clk 0:02:54.5]}
4. dxc5 {[%clk 0:02:59.5]} 4... e6 {[%clk 0:02:53]} 5. a3 {[%clk 0:02:59.3]}
5... Bxc5 {[%clk 0:02:50.9]} 6. Qg4 {[%clk 0:02:58.6]} 6... Ne7 {[%clk
0:02:47.8]} 7. Bd3 {[%clk 0:02:49.9]} 7... Qc7 {[%clk 0:02:44.8]} 8. Nf3 {[%clk
0:02:49.8]} 8... Nbc6 {[%clk 0:02:40.4]} 9. Bf4 {[%clk 0:02:45.5]} 9... Nd4
{[%clk 0:02:36.2]} 10. O-O {[%clk 0:02:36.9]} 10... Ng6 {[%clk 0:02:18.3]} 11.
Re1 {[%clk 0:02:28.9]} 11... h5 {[%clk 0:02:06.9]} 12. Qg3 {[%clk 0:02:22.3]}
12... h4 {[%clk 0:02:04.3]} 13. Qg4 {[%clk 0:02:21.4]} 13... Nf5 {[%clk
0:01:53]} 14. b4 {[%clk 0:01:56.2]} 14... Bb6 {[%clk 0:01:51]} 15. h3 {[%clk
0:01:52]} 15... Bd7 {[%clk 0:01:48.8]} 16. Nbd2 {[%clk 0:01:46.7]} 16... Qc3
{[%clk 0:01:27.2]} 17. Nb3 {[%clk 0:01:39.7]} 17... Nxf4 {[%clk 0:01:09.3]} 18.
Qxf4 {[%clk 0:01:40.2]} 18... Ng3 {[%clk 0:01:04.2]} 19. Nxh4 {[%clk 0:01:24.4]}
19... Ne4 {[%clk 0:01:03.4]} 20. Bxe4 {[%clk 0:01:13.1]} 20... dxe4 {[%clk
0:01:01.9]} 21. Rxe4 {[%clk 0:00:48.3]} 21... Qxc2 {[%clk 0:00:58.1]} 22. Nd4
{[%clk 0:00:41]} 22... Qd3 {[%clk 0:00:55.9]} 23. Nhf3 {[%clk 0:00:34.1]} 23...
a5 {[%clk 0:00:45.9]} 24. Rae1 {[%clk 0:00:19.5]} 24... axb4 {[%clk 0:00:45.4]}
25. axb4 {[%clk 0:00:20.4]} 25... Ra2 {[%clk 0:00:42.3]} 26. R4e2 {[%clk
0:00:18]} 26... Rxe2 {[%clk 0:00:40.8]} 27. Rxe2 {[%clk 0:00:18.9]} 27... O-O
{[%clk 0:00:30.7]} 28. Kh2 {[%clk 0:00:16.7]} 28... Rc8 {[%clk 0:00:26]} 29. Re3
{[%clk 0:00:16.6]} 29... Qb1 {[%clk 0:00:22.5]} 30. Ng5 {[%clk 0:00:15]} 30...
Rf8 {[%clk 0:00:16.1]} 31. Rg3 {[%clk 0:00:06.3]} 31... Bxd4 {[%clk 0:00:04.1]}
32. Qxd4 {[%clk 0:00:06.3]} 32... Qf5 {[%clk 0:00:04.6]} 33. Qh4 {[%clk
0:00:06.6]} 33... Bc6 {[%clk 0:00:04.5]} 34. Nf3 {[%clk 0:00:06.3]} 34... Qh7
{[%clk 0:00:03.9]} 35. Qf4 {[%clk 0:00:03.5]} 35... Bxf3 {[%clk 0:00:04]} 36.
Rxf3 {[%clk 0:00:04.4]} 36... Qg6 {[%clk 0:00:03.2]} 37. Rg3 {[%clk 0:00:04.8]}
37... Qh7 {[%clk 0:00:03.4]} 38. h4 {[%clk 0:00:04.9]} 38... Qh5 {[%clk
0:00:03]} 39. Kh3 {[%clk 0:00:05.3]} 39... Rd8 {[%clk 0:00:02.3]} 40. Rg5 {[%clk
0:00:05.9]} 40... Qh6 {[%clk 0:00:02.7]} 41. Qg3 {[%clk 0:00:05.3]} 41... Rd4
{[%clk 0:00:02.5]} 42. f4 {[%clk 0:00:05.3]} 42... Re4 {[%clk 0:00:02.7]} 43.
Rg4 {[%clk 0:00:03.8]} 43... Rd4 {[%clk 0:00:03.1]} 44. b5 {[%clk 0:00:03.6]}
44... Qh7 {[%clk 0:00:03.5]} 45. Qf3 {[%clk 0:00:04]} 45... Rd3 {[%clk
0:00:03.8]} 46. Rg3 {[%clk 0:00:03.7]} 46... Rxf3 {[%clk 0:00:03.8]} 47. Rxf3
{[%clk 0:00:04.2]} 47... Qf5+ {[%clk 0:00:04.5]} 48. g4 {[%clk 0:00:04.2]} 48...
Qc2 {[%clk 0:00:05.4]} 49. Kg3 {[%clk 0:00:04.4]} 49... Qc4 {[%clk 0:00:05.8]}
50. f5 {[%clk 0:00:04.9]} 50... Qxb5 {[%clk 0:00:06.1]} 51. fxe6 {[%clk
0:00:04.7]} 51... Qxe5+ {[%clk 0:00:06.6]} 52. Kh3 {[%clk 0:00:04.8]} 52... Qxe6
{[%clk 0:00:07.1]} 0-1

[Event "Late-Titled-Tuesday-Blitz-April-30-2024"]
[Site "Chess.com"]
[Date "2024.04.30"]
[Round "2"]
[White "masterofpuppets2"]
[Black "MuhittinBuker"]
[Result "1-0"]
[WhiteElo "2477"]
[BlackElo "2176"]
[TimeControl "180+1"]
[EndTime "14:19:08 PDT"]
[Termination "masterofpuppets2 won on time"]

1. d4 {[%clk 0:03:00.9]} 1... Nf6 {[%clk 0:02:58.8]} 2. c4 {[%clk 0:03:01.3]}
2... e6 {[%clk 0:02:59.2]} 3. Nc3 {[%clk 0:03:01.1]} 3... Bb4 {[%clk 0:02:58.7]}
4. Qc2 {[%clk 0:03:01.7]} 4... c5 {[%clk 0:02:57.8]} 5. dxc5 {[%clk 0:03:01.6]}
5... Na6 {[%clk 0:02:57.6]} 6. a3 {[%clk 0:03:02.1]} 6... Bxc3+ {[%clk
0:02:57.3]} 7. Qxc3 {[%clk 0:03:03]} 7... Nxc5 {[%clk 0:02:57.5]} 8. b4 {[%clk
0:03:03.4]} 8... Nce4 {[%clk 0:02:57.5]} 9. Qb2 {[%clk 0:03:03.9]} 9... O-O
{[%clk 0:02:56.5]} 10. c5 {[%clk 0:02:54.9]} 10... d5 {[%clk 0:02:55.6]} 11. f3
{[%clk 0:02:54.3]} 11... Nd7 {[%clk 0:02:38.6]} 12. fxe4 {[%clk 0:02:53]} 12...
Qh4+ {[%clk 0:02:37]} 13. g3 {[%clk 0:02:51.8]} 13... Qxe4 {[%clk 0:02:36.2]}
14. Nf3 {[%clk 0:02:52.1]} 14... e5 {[%clk 0:02:27.7]} 15. Bg2 {[%clk
0:02:46.2]} 15... d4 {[%clk 0:02:26.2]} 16. O-O {[%clk 0:02:42.3]} 16... Qg6
{[%clk 0:02:15.7]} 17. Nh4 {[%clk 0:02:39]} 17... Qe6 {[%clk 0:02:12.2]} 18. Nf5
{[%clk 0:02:37.3]} 18... Nf6 {[%clk 0:02:08.4]} 19. Nd6 {[%clk 0:02:37]} 19...
Rb8 {[%clk 0:01:58]} 20. Nxc8 {[%clk 0:02:31.1]} 20... Rfxc8 {[%clk 0:01:54.1]}
21. e3 {[%clk 0:02:28.4]} 21... d3 {[%clk 0:01:50.2]} 22. Bd2 {[%clk 0:02:20.8]}
22... e4 {[%clk 0:01:35.7]} 23. Bc3 {[%clk 0:02:18.8]} 23... Ng4 {[%clk
0:01:35.7]} 24. Bd4 {[%clk 0:02:18.7]} 24... Qh6 {[%clk 0:01:26.3]} 25. h4
{[%clk 0:02:05.3]} 25... Nxe3 {[%clk 0:01:17.3]} 26. Bxe4 {[%clk 0:01:48.6]}
26... Nxf1 {[%clk 0:01:11.7]} 27. Rxf1 {[%clk 0:01:48.9]} 27... d2 {[%clk
0:01:09.3]} 28. Qc3 {[%clk 0:01:22.3]} 28... Re8 {[%clk 0:01:07.5]} 29. Bd5
{[%clk 0:00:40.3]} 29... Re7 {[%clk 0:00:55.5]} 30. Qf3 {[%clk 0:00:34.8]} 30...
Rf8 {[%clk 0:00:21.2]} 31. Bf2 {[%clk 0:00:27.1]} 31... Qg6 {[%clk 0:00:12.3]}
32. Kg2 {[%clk 0:00:25]} 32... Qc2 {[%clk 0:00:10.7]} 33. Bb3 {[%clk 0:00:16.5]}
33... Qb2 {[%clk 0:00:08.8]} 34. Rd1 {[%clk 0:00:16.2]} 34... Rd8 {[%clk
0:00:07.8]} 35. Bc4 {[%clk 0:00:14.2]} 35... Qc2 {[%clk 0:00:07.3]} 36. Qb3
{[%clk 0:00:13.4]} 36... Qxb3 {[%clk 0:00:06.2]} 37. Bxb3 {[%clk 0:00:13.5]}
37... Rd3 {[%clk 0:00:05.7]} 38. Bc2 {[%clk 0:00:13]} 38... Rxa3 {[%clk
0:00:05.2]} 39. Rxd2 {[%clk 0:00:13.4]} 39... g6 {[%clk 0:00:05.3]} 40. Bd1
{[%clk 0:00:12.3]} 40... h5 {[%clk 0:00:05.1]} 41. Bf3 {[%clk 0:00:12.3]} 41...
Kh7 {[%clk 0:00:05.2]} 42. Rb2 {[%clk 0:00:09.5]} 42... a6 {[%clk 0:00:04.3]}
43. b5 {[%clk 0:00:09.2]} 43... Rd7 {[%clk 0:00:03.6]} 44. c6 {[%clk 0:00:09.1]}
44... bxc6 {[%clk 0:00:03.5]} 45. bxc6 {[%clk 0:00:10]} 45... Rdd3 {[%clk
0:00:03.3]} 46. c7 {[%clk 0:00:08.8]} 46... Rdc3 {[%clk 0:00:02.9]} 47. Bb6
{[%clk 0:00:04.9]} 47... Rxf3 {[%clk 0:00:01.8]} 48. c8=Q {[%clk 0:00:04.6]}
48... Rxg3+ {[%clk 0:00:02.1]} 49. Kh2 {[%clk 0:00:05]} 49... Rh3+ {[%clk
0:00:01.3]} 50. Qxh3 {[%clk 0:00:05.2]} 50... Rxh3+ {[%clk 0:00:01.4]} 51. Kxh3
{[%clk 0:00:06]} 1-0

[Event "Late-Titled-Tuesday-Blitz-April-30-2024"]
[Site "Chess.com"]
[Date "2024.04.30"]
[Round "2"]
[White "tptagain"]
[Black "chessisveryfun1264"]
[Result "1/2-1/2"]
[WhiteElo "2961"]
[BlackElo "2621"]
[TimeControl "180+1"]
[EndTime "14:19:12 PDT"]
[Termination "Game drawn by stalemate"]

1. d4 {[%clk 0:03:00.9]} 1... e6 {[%clk 0:03:00.9]} 2. Nf3 {[%clk 0:03:01.3]}
2... f5 {[%clk 0:02:57.3]} 3. Bg5 {[%clk 0:02:59.3]} 3... Nf6 {[%clk 0:02:56.7]}
4. e3 {[%clk 0:02:58.4]} 4... b6 {[%clk 0:02:56.7]} 5. Be2 {[%clk 0:02:54.5]}
5... Bb7 {[%clk 0:02:46.2]} 6. O-O {[%clk 0:02:54.1]} 6... Be7 {[%clk
0:02:43.8]} 7. c4 {[%clk 0:02:53.2]} 7... O-O {[%clk 0:02:44]} 8. h3 {[%clk
0:02:47.1]} 8... Ne4 {[%clk 0:02:44.2]} 9. Bxe7 {[%clk 0:02:39.6]} 9... Qxe7
{[%clk 0:02:45.1]} 10. a4 {[%clk 0:02:38.3]} 10... a5 {[%clk 0:02:42.2]} 11. Nc3
{[%clk 0:02:38.3]} 11... d6 {[%clk 0:02:41.6]} 12. Nd2 {[%clk 0:02:35.9]} 12...
Nxc3 {[%clk 0:02:40.9]} 13. bxc3 {[%clk 0:02:35.8]} 13... Nd7 {[%clk 0:02:41.8]}
14. Bf3 {[%clk 0:02:34.9]} 14... Bxf3 {[%clk 0:02:38.4]} 15. Qxf3 {[%clk
0:02:35.8]} 15... Rac8 {[%clk 0:02:34.6]} 16. Rab1 {[%clk 0:02:23.2]} 16... Kh8
{[%clk 0:02:33.4]} 17. Rb5 {[%clk 0:02:19.4]} 17... e5 {[%clk 0:02:28.1]} 18.
Qc6 {[%clk 0:02:18.8]} 18... e4 {[%clk 0:02:24.6]} 19. f3 {[%clk 0:02:02.9]}
19... exf3 {[%clk 0:02:20.4]} 20. Rxf3 {[%clk 0:01:48.1]} 20... g6 {[%clk
0:02:18.8]} 21. e4 {[%clk 0:00:58.9]} 21... fxe4 {[%clk 0:01:57.1]} 22. Qxe4
{[%clk 0:00:59]} 22... Qxe4 {[%clk 0:01:49.3]} 23. Nxe4 {[%clk 0:00:59.9]} 23...
Rxf3 {[%clk 0:01:48.7]} 24. gxf3 {[%clk 0:01:00.8]} 24... Kg7 {[%clk 0:01:46.8]}
25. Kf2 {[%clk 0:00:59.1]} 25... Nf6 {[%clk 0:01:45.7]} 26. c5 {[%clk 0:00:40]}
26... dxc5 {[%clk 0:01:16.2]} 27. dxc5 {[%clk 0:00:40]} 27... Nd5 {[%clk
0:01:09.7]} 28. cxb6 {[%clk 0:00:39.1]} 28... Nxb6 {[%clk 0:01:05.4]} 29. Rxa5
{[%clk 0:00:38.9]} 29... Rd8 {[%clk 0:00:52.8]} 30. Ra7 {[%clk 0:00:38.3]} 30...
Rd7 {[%clk 0:00:53.2]} 31. Nc5 {[%clk 0:00:35]} 31... Rd2+ {[%clk 0:00:48.1]}
32. Kg3 {[%clk 0:00:35.5]} 32... Rc2 {[%clk 0:00:38.7]} 33. a5 {[%clk
0:00:34.4]} 33... Nd5 {[%clk 0:00:37.8]} 34. Ne6+ {[%clk 0:00:34.6]} 34... Kh6
{[%clk 0:00:36.3]} 35. Nxc7 {[%clk 0:00:34.1]} 35... Nxc3 {[%clk 0:00:34.1]} 36.
a6 {[%clk 0:00:28.3]} 36... Ne2+ {[%clk 0:00:33.9]} 37. Kf2 {[%clk 0:00:28.8]}
37... Nf4+ {[%clk 0:00:32.4]} 38. Ke3 {[%clk 0:00:28.9]} 38... Rxc7 {[%clk
0:00:32.9]} 39. Rxc7 {[%clk 0:00:28.6]} 39... Nd5+ {[%clk 0:00:33.2]} 40. Ke4
{[%clk 0:00:28.6]} 40... Nxc7 {[%clk 0:00:33.5]} 41. a7 {[%clk 0:00:28.7]} 41...
Kg7 {[%clk 0:00:25.6]} 42. Ke5 {[%clk 0:00:27.9]} 42... Kf7 {[%clk 0:00:22.7]}
43. f4 {[%clk 0:00:24.9]} 43... Ke7 {[%clk 0:00:19.7]} 44. f5 {[%clk 0:00:24.6]}
44... g5 {[%clk 0:00:20]} 45. f6+ {[%clk 0:00:16.8]} 45... Kf7 {[%clk
0:00:20.5]} 46. Kf5 {[%clk 0:00:14.5]} 46... h6 {[%clk 0:00:20.3]} 47. h4 {[%clk
0:00:15.1]} 47... gxh4 {[%clk 0:00:13.2]} 48. Kg4 {[%clk 0:00:15.3]} 48... Kxf6
{[%clk 0:00:12.7]} 49. Kxh4 {[%clk 0:00:15.9]} 49... Kg6 {[%clk 0:00:11.4]} 50.
Kg4 {[%clk 0:00:16.5]} 50... h5+ {[%clk 0:00:11.2]} 51. Kh4 {[%clk 0:00:17.4]}
51... Kh6 {[%clk 0:00:10.3]} 52. Kh3 {[%clk 0:00:17.9]} 52... Kg5 {[%clk
0:00:10.9]} 53. Kg3 {[%clk 0:00:18.5]} 53... Na8 {[%clk 0:00:11.1]} 54. Kh3
{[%clk 0:00:18.9]} 54... h4 {[%clk 0:00:11.7]} 55. Kh2 {[%clk 0:00:19.1]} 55...
Kh5 {[%clk 0:00:12.3]} 56. Kh3 {[%clk 0:00:19.5]} 56... Kg5 {[%clk 0:00:12.6]}
57. Kh2 {[%clk 0:00:20.4]} 57... Kg4 {[%clk 0:00:13.3]} 58. Kg2 {[%clk
0:00:20.8]} 58... Nb6 {[%clk 0:00:12.8]} 59. Kh2 {[%clk 0:00:21.1]} 59... h3
{[%clk 0:00:12.9]} 60. Kh1 {[%clk 0:00:19]} 60... Kg3 {[%clk 0:00:12.7]} 61. Kg1
{[%clk 0:00:19.3]} 61... h2+ {[%clk 0:00:10.9]} 62. Kh1 {[%clk 0:00:19.6]} 62...
Kh3 {[%clk 0:00:09.9]} 63. a8=Q {[%clk 0:00:19]} 63... Nxa8 {[%clk 0:00:10.4]}
1/2-1/2

[Event "Late-Titled-Tuesday-Blitz-April-30-2024"]
[Site "Chess.com"]
[Date "2024.04.30"]
[Round "2"]
[White "VacheH009"]
[Black "TheSilmarils"]
[Result "0-1"]
[WhiteElo "2594"]
[BlackElo "2921"]
[TimeControl "180+1"]
[EndTime "14:19:13 PDT"]
[Termination "TheSilmarils won by resignation"]

1. d4 {[%clk 0:03:00.9]} 1... Nf6 {[%clk 0:02:59.5]} 2. c4 {[%clk 0:02:58.8]}
2... e6 {[%clk 0:02:58.7]} 3. a3 {[%clk 0:02:55.8]} 3... d5 {[%clk 0:02:48.4]}
4. e3 {[%clk 0:02:52]} 4... a6 {[%clk 0:02:47.2]} 5. Nf3 {[%clk 0:02:48.5]} 5...
dxc4 {[%clk 0:02:46.4]} 6. Bxc4 {[%clk 0:02:48]} 6... b5 {[%clk 0:02:46.9]} 7.
Be2 {[%clk 0:02:47.6]} 7... Bb7 {[%clk 0:02:46.9]} 8. b4 {[%clk 0:02:19.3]} 8...
Nbd7 {[%clk 0:02:46]} 9. O-O {[%clk 0:02:18.2]} 9... Bd6 {[%clk 0:02:46.2]} 10.
Nbd2 {[%clk 0:02:16.3]} 10... O-O {[%clk 0:02:45.6]} 11. Nb3 {[%clk 0:02:16]}
11... Qe7 {[%clk 0:02:44.9]} 12. Bb2 {[%clk 0:02:10.9]} 12... Bd5 {[%clk
0:02:40.5]} 13. Na5 {[%clk 0:02:04]} 13... c6 {[%clk 0:02:19.1]} 14. Rc1 {[%clk
0:02:01.3]} 14... Rac8 {[%clk 0:02:19.7]} 15. Nd2 {[%clk 0:01:37.4]} 15... Bc7
{[%clk 0:02:18.3]} 16. Nab3 {[%clk 0:01:28.4]} 16... e5 {[%clk 0:02:18.4]} 17.
dxe5 {[%clk 0:01:26.9]} 17... Nxe5 {[%clk 0:02:19.3]} 18. Nc5 {[%clk 0:01:23.9]}
18... Rcd8 {[%clk 0:02:08.6]} 19. Nxa6 {[%clk 0:01:06.1]} 19... Bd6 {[%clk
0:02:01.4]} 20. Qc2 {[%clk 0:01:00.9]} 20... Neg4 {[%clk 0:01:54.7]} 21. h3
{[%clk 0:00:28.8]} 21... Nxe3 {[%clk 0:01:32.8]} 22. Bxf6 {[%clk 0:00:27.2]}
22... gxf6 {[%clk 0:01:28.1]} 23. fxe3 {[%clk 0:00:25.7]} 23... Qxe3+ {[%clk
0:01:29]} 24. Rf2 {[%clk 0:00:11.4]} 24... Bg3 {[%clk 0:01:29.3]} 25. Rf1 {[%clk
0:00:12]} 25... Bxf2+ {[%clk 0:01:23.9]} 26. Rxf2 {[%clk 0:00:12.9]} 26... Bxg2
{[%clk 0:01:12.4]} 27. Nf1 {[%clk 0:00:10.6]} 27... Bxf1 {[%clk 0:01:11.2]} 28.
Kxf1 {[%clk 0:00:11.5]} 28... Kh8 {[%clk 0:01:08]} 29. Qf5 {[%clk 0:00:08.8]}
29... Qc1+ {[%clk 0:01:00.7]} 30. Kg2 {[%clk 0:00:07.3]} 30... Rg8+ {[%clk
0:01:01.4]} 31. Bg4 {[%clk 0:00:05.6]} 31... Rg6 {[%clk 0:00:54]} 32. Kh2 {[%clk
0:00:04.5]} 32... Kg7 {[%clk 0:00:40.6]} 33. Nc5 {[%clk 0:00:04.3]} 33... Rd5
{[%clk 0:00:39]} 34. Qf4 {[%clk 0:00:03.6]} 34... Qxf4+ {[%clk 0:00:22.8]} 35.
Rxf4 {[%clk 0:00:04.5]} 35... Rd2+ {[%clk 0:00:22.3]} 36. Kh1 {[%clk 0:00:02.7]}
36... Ra2 {[%clk 0:00:22.9]} 37. Rf3 {[%clk 0:00:02]} 37... Rg5 {[%clk
0:00:19.7]} 38. Ne4 {[%clk 0:00:02.4]} 38... Re5 {[%clk 0:00:20.3]} 39. Ng3
{[%clk 0:00:01.9]} 39... Re1+ {[%clk 0:00:19.1]} 40. Rf1 {[%clk 0:00:02.5]}
40... Rxf1+ {[%clk 0:00:19.4]} 41. Nxf1 {[%clk 0:00:03.4]} 41... Rxa3 {[%clk
0:00:20]} 42. Nd2 {[%clk 0:00:03.7]} 42... Kg6 {[%clk 0:00:17.8]} 43. Nf3 {[%clk
0:00:03.6]} 43... h5 {[%clk 0:00:15.4]} 44. Nh4+ {[%clk 0:00:02.5]} 44... Kg5
{[%clk 0:00:15.9]} 45. Nf3+ {[%clk 0:00:02.9]} 45... Kh6 {[%clk 0:00:13]} 46.
Nd4 {[%clk 0:00:02.1]} 46... hxg4 {[%clk 0:00:12.5]} 47. hxg4 {[%clk 0:00:03]}
47... Kg5 {[%clk 0:00:12.7]} 48. Nxc6 {[%clk 0:00:02.8]} 48... Kxg4 {[%clk
0:00:12.8]} 49. Kg1 {[%clk 0:00:01]} 49... Kg3 {[%clk 0:00:10.4]} 50. Kf1 {[%clk
0:00:01.5]} 50... f5 {[%clk 0:00:10.6]} 51. Nd4 {[%clk 0:00:01.5]} 51... f4
{[%clk 0:00:10.5]} 52. Nxb5 {[%clk 0:00:02.2]} 52... Ra1+ {[%clk 0:00:10.6]} 53.
Ke2 {[%clk 0:00:02.2]} 53... f3+ {[%clk 0:00:11.5]} 54. Ke3 {[%clk 0:00:02.3]}
54... f2 {[%clk 0:00:12.4]} 55. Nd4 {[%clk 0:00:02.2]} 55... Re1+ {[%clk
0:00:12.3]} 56. Kd2 {[%clk 0:00:02.3]} 56... f1=Q {[%clk 0:00:12.2]} 57. Nc2
{[%clk 0:00:03.2]} 57... Rd1+ {[%clk 0:00:12.1]} 58. Kc3 {[%clk 0:00:04.1]}
58... Qd3+ {[%clk 0:00:12]} 59. Kb2 {[%clk 0:00:05]} 59... Rd2 {[%clk
0:00:12.5]} 0-1

[Event "Late-Titled-Tuesday-Blitz-April-30-2024"]
[Site "Chess.com"]
[Date "2024.04.30"]
[Round "2"]
[White "crosky"]
[Black "Cambek64"]
[Result "0-1"]
[WhiteElo "2338"]
[BlackElo "2532"]
[TimeControl "180+1"]
[EndTime "14:19:16 PDT"]
[Termination "Cambek64 won on time"]

1. d4 {[%clk 0:03:00.9]} 1... Nf6 {[%clk 0:02:45.4]} 2. Bg5 {[%clk 0:03:00.3]}
2... d5 {[%clk 0:02:43.7]} 3. Nd2 {[%clk 0:02:58]} 3... e6 {[%clk 0:02:42.5]} 4.
e3 {[%clk 0:02:58.5]} 4... Be7 {[%clk 0:02:40.9]} 5. Bd3 {[%clk 0:02:58.9]} 5...
c5 {[%clk 0:02:41]} 6. c3 {[%clk 0:02:58.8]} 6... O-O {[%clk 0:02:40.6]} 7. f4
{[%clk 0:02:59.1]} 7... b6 {[%clk 0:02:39.5]} 8. Ngf3 {[%clk 0:02:56]} 8... Ba6
{[%clk 0:02:39.6]} 9. Bxa6 {[%clk 0:02:56.4]} 9... Nxa6 {[%clk 0:02:39.7]} 10.
Qe2 {[%clk 0:02:56.1]} 10... Nb8 {[%clk 0:02:39.1]} 11. Ne5 {[%clk 0:02:56.1]}
11... Nfd7 {[%clk 0:02:27.7]} 12. Bxe7 {[%clk 0:02:43.5]} 12... Qxe7 {[%clk
0:02:26.7]} 13. O-O {[%clk 0:02:43.2]} 13... Nxe5 {[%clk 0:02:17.4]} 14. fxe5
{[%clk 0:02:42.6]} 14... Nd7 {[%clk 0:02:10]} 15. Qg4 {[%clk 0:02:42.1]} 15...
f6 {[%clk 0:02:08.6]} 16. exf6 {[%clk 0:02:33.5]} 16... Nxf6 {[%clk 0:02:03.9]}
17. Qh4 {[%clk 0:02:25.6]} 17... Rae8 {[%clk 0:02:03.8]} 18. Nf3 {[%clk
0:02:23.6]} 18... Nd7 {[%clk 0:01:59.6]} 19. Qg3 {[%clk 0:02:20.1]} 19... e5
{[%clk 0:01:54.4]} 20. Nh4 {[%clk 0:01:52.2]} 20... Qe6 {[%clk 0:01:42.4]} 21.
h3 {[%clk 0:01:33.3]} 21... a5 {[%clk 0:01:02.2]} 22. Qg5 {[%clk 0:01:33.4]}
22... g6 {[%clk 0:01:00.1]} 23. a4 {[%clk 0:01:30.4]} 23... c4 {[%clk
0:00:51.8]} 24. Nf3 {[%clk 0:01:23.3]} 24... e4 {[%clk 0:00:51.1]} 25. Nh2
{[%clk 0:01:23.4]} 25... Rf5 {[%clk 0:00:47.9]} 26. Qg3 {[%clk 0:01:16.5]} 26...
Ref8 {[%clk 0:00:46.5]} 27. Rxf5 {[%clk 0:01:09]} 27... Rxf5 {[%clk 0:00:39.4]}
28. Ng4 {[%clk 0:01:09.9]} 28... Kg7 {[%clk 0:00:37.9]} 29. Qc7 {[%clk
0:01:03.1]} 29... Rf7 {[%clk 0:00:37.8]} 30. Rf1 {[%clk 0:01:00.3]} 30... Rxf1+
{[%clk 0:00:34.3]} 31. Kxf1 {[%clk 0:01:01.2]} 31... Qf7+ {[%clk 0:00:33.2]} 32.
Kg1 {[%clk 0:01:01.4]} 32... h5 {[%clk 0:00:33.5]} 33. Nh2 {[%clk 0:00:52.9]}
33... Qe6 {[%clk 0:00:25.3]} 34. g4 {[%clk 0:00:50.6]} 34... h4 {[%clk
0:00:24.5]} 35. Kg2 {[%clk 0:00:42.6]} 35... g5 {[%clk 0:00:21.8]} 36. Qd8
{[%clk 0:00:40]} 36... Kg6 {[%clk 0:00:20.2]} 37. Nf1 {[%clk 0:00:24.8]} 37...
Nf6 {[%clk 0:00:20.4]} 38. Nd2 {[%clk 0:00:23.4]} 38... Qc6 {[%clk 0:00:20]} 39.
Nf1 {[%clk 0:00:12.8]} 39... Qxa4 {[%clk 0:00:20.3]} 40. Qxb6 {[%clk 0:00:13.3]}
40... Qc2+ {[%clk 0:00:19.8]} 41. Kg1 {[%clk 0:00:13.3]} 41... a4 {[%clk
0:00:19.7]} 42. Qb4 {[%clk 0:00:12]} 42... Qb3 {[%clk 0:00:19.2]} 43. Qxb3
{[%clk 0:00:05.6]} 43... cxb3 {[%clk 0:00:19.7]} 44. Nd2 {[%clk 0:00:04.1]}
44... Kf7 {[%clk 0:00:17.1]} 45. Kf2 {[%clk 0:00:04]} 45... Ke6 {[%clk
0:00:16.9]} 46. Ke2 {[%clk 0:00:03.9]} 46... Kd6 {[%clk 0:00:16.2]} 47. Kd1
{[%clk 0:00:04.4]} 47... Kc6 {[%clk 0:00:16.6]} 48. Kc1 {[%clk 0:00:04.6]} 48...
Kb5 {[%clk 0:00:17.1]} 49. Kb1 {[%clk 0:00:04.6]} 49... Ne8 {[%clk 0:00:16.6]}
50. Kc1 {[%clk 0:00:02.2]} 50... Nd6 {[%clk 0:00:16.6]} 51. Kb1 {[%clk
0:00:02.8]} 51... Nc4 {[%clk 0:00:17.2]} 52. Kc1 {[%clk 0:00:02.4]} 52... Nxd2
{[%clk 0:00:16.2]} 53. Kxd2 {[%clk 0:00:03.3]} 53... Kc4 {[%clk 0:00:15.5]} 54.
Kc1 {[%clk 0:00:01.6]} 54... Kd3 {[%clk 0:00:15.6]} 55. Kb1 {[%clk 0:00:02.5]}
55... Kxe3 {[%clk 0:00:15.2]} 56. c4 {[%clk 0:00:03.4]} 56... Kxd4 {[%clk
0:00:15]} 0-1